bitfinex/quotes_BTCUSD_20250417
["timestamp","ask_amount","ask_price","bid_price","bid_amount"]
[1744920075066,0.23567875,84862.0,84858.0,0.2474716]
[1744920075179,0.23568299,84860.0,84857.0,0.57568882]
[1744920075390,0.23569063,84857.0,84856.0,0.34]
[1744920076247,0.23569896,84854.0,84853.0,0.02520194]
[1744920076447,0.23569896,84854.0,84840.0,0.57573693]
[1744920076448,0.01178689,84840.0,84836.0,0.35178744]
[1744920076686,0.23573385,84842.0,84838.0,0.01178717]
[1744920076855,0.01178605,84846.0,84838.0,0.01178717]
[1744920076856,0.23572641,84845.0,84840.0,0.23573785]
[1744920077061,0.2475126,84845.0,84841.0,0.01178675]
[1744920077300,0.01178619,84845.0,84841.0,0.24752139]
[1744920077487,0.01178619,84845.0,84842.0,0.01178661]
[1744920077648,0.01178633,84844.0,84841.0,0.24752139]
[1744920077851,0.01178605,84846.0,84843.0,0.01178647]
[1744920078080,0.01178633,84844.0,84840.0,0.58752269]
[1744920078286,0.01178633,84844.0,84841.0,0.01178675]
[1744920078448,0.2475131,84844.0,84842.0,0.23573219]
[1744920078655,0.01178605,84846.0,84843.0,0.01178647]
[1744920079356,0.23571929,84847.0,84844.0,0.01178633]
[1744920080220,0.01178619,84845.0,84840.0,0.57573242]
[1744920080596,0.24763642,84848.0,84844.0,0.24751034]
[1744920081474,0.23572118,84846.0,84844.0,0.0003]
[1744920081703,0.01178592,84847.0,84844.0,0.0003]
[1744920082039,0.00013474,84848.0,84845.0,0.01178619]
[1744920082241,0.00013474,84848.0,84846.0,0.23572027]
[1744920082444,0.23585059,84848.0,84845.0,0.24750799]
[1744920082646,0.24763637,84848.0,84845.0,0.24750799]
[1744920082856,0.24763645,84848.0,84845.0,0.24750799]
[1744920083061,0.24763735,84848.0,84845.0,0.24750799]
[1744920083317,0.00013474,84848.0,84847.0,0.23571841]
[1744920083536,0.00013474,84848.0,84847.0,0.2380753]
[1744920084690,0.00013474,84848.0,84847.0,0.24543238]
[1744920085034,0.00013474,84848.0,84847.0,0.24307549]
[1744920085232,0.00013474,84848.0,84847.0,0.00735708]
[1744920085673,0.23585037,84848.0,84847.0,0.00735708]
[1744920085911,0.01178633,84844.0,84841.0,0.2357349]
[1744920086123,0.24750656,84847.0,84843.0,0.23572759]
[1744920086297,0.24751151,84845.0,84841.0,0.2357349]
[1744920086500,0.23572876,84844.0,84842.0,0.23573179]
[1744920086700,0.23572876,84844.0,84841.0,0.24752165]
[1744920087303,0.00013474,84848.0,84847.0,0.23571841]
[1744920087723,0.23572108,84847.0,84843.0,0.24751431]
[1744920087902,0.01178592,84847.0,84844.0,0.01178633]
[1744920088506,0.01192052,84848.0,84845.0,0.23572343]
[1744920088684,0.00013474,84848.0,84846.0,0.23571979]
[1744920088889,0.2358505,84848.0,84846.0,0.23571979]
[1744920089527,0.24763628,84848.0,84845.0,0.24750978]
[1744920090162,0.24763628,84848.0,84846.0,0.05]
[1744920090364,0.23571841,84847.0,84846.0,0.05]
[1744920092059,0.00013474,84848.0,84846.0,0.05]
[1744920092285,0.23585078,84848.0,84846.0,0.05]
[1744920092878,0.23571841,84847.0,84846.0,0.05]
[1744920094517,0.28081841,84847.0,84846.0,0.05]
[1744920095401,0.23571841,84847.0,84846.0,0.05]
[1744920096599,0.23575175,84835.0,84834.0,0.02424966]
[1744920096757,0.24754684,84833.0,84829.0,0.24755667]
[1744920096961,0.01178828,84830.0,84826.0,0.24756435]
[1744920097163,0.247551,84831.0,84827.0,0.34]
[1744920097406,0.01178786,84833.0,84829.0,0.01178842]
[1744920097585,0.23575263,84835.0,84833.0,0.01178786]
[1744920097788,0.24751525,84844.0,84840.0,0.23573748]
[1744920098000,0.24753212,84838.0,84836.0,0.34]
[1744920098272,0.23574687,84837.0,84835.0,0.34]
[1744920098811,0.23574897,84836.0,84835.0,0.34]
[1744920099392,0.24753417,84837.0,84828.0,0.24755946]
[1744920099393,0.24755684,84829.0,84828.0,0.34]
[1744920099601,0.23576633,84830.0,84828.0,0.5757712]
[1744920099831,0.23576842,84829.0,84828.0,0.34]
[1744920100317,0.24755108,84831.0,84827.0,0.39]
[1744920100558,0.23576607,84830.0,84827.0,0.40178869]
[1744920100800,0.24755108,84831.0,84827.0,0.6375617]
[1744920101307,0.23576811,84830.0,84827.0,0.6375617]
[1744920101780,0.2357712,84828.0,84827.0,0.05]
[1744920102010,0.23577676,84826.0,84825.0,0.02408203]
[1744920102238,0.2357851,84823.0,84822.0,0.0008424]
[1744920103411,0.01178897,84825.0,84822.0,0.0008424]
[1744920103641,0.2357851,84823.0,84822.0,0.0008424]
[1744920104965,0.23577697,84826.0,84823.0,0.01178925]
[1744920105165,0.23577697,84826.0,84822.0,0.24841851]
[1744920105166,0.2475658,84826.0,84822.0,0.24841851]
[1744920105367,0.2357799,84825.0,84822.0,0.01263179]
[1744920105566,0.2357851,84823.0,84822.0,0.0011424]
[1744920111371,0.24756912,84825.0,84822.0,0.0011424]
[1744920111572,0.0454,84836.0,84830.0,0.23576288]
[1744920111726,1.1783309,84866.0,84822.0,0.0011424]
[1744920111727,0.0117855,84850.0,84842.0,0.24751378]
[1744920111931,0.23574063,84839.0,84834.0,0.24753977]
[1744920112135,0.24753242,84838.0,84833.0,0.01178786]
[1744920112361,0.24753647,84836.0,84833.0,0.34]
[1744920112565,0.23575192,84835.0,84833.0,0.34]
[1744920112938,0.23575453,84834.0,84833.0,0.34]
[1744920113125,0.23575192,84835.0,84833.0,0.34]
[1744920115403,0.24753661,84836.0,84833.0,0.57575665]
[1744920115627,0.23575266,84835.0,84833.0,0.34]
[1744920116101,0.23575266,84835.0,84833.0,0.57575724]
[1744920116509,0.23574658,84837.0,84834.0,0.23575438]
[1744920116816,0.23575022,84836.0,84834.0,0.23575438]
[1744920118263,0.23575022,84836.0,84833.0,0.35178786]
[1744920118480,0.23572602,84845.0,84836.0,0.23574897]
[1744920118637,0.47131088,84870.0,84825.0,0.50647356]
[1744920118638,0.23573119,84843.0,84841.0,0.01178675]
[1744920118831,0.24751572,84844.0,84841.0,0.01178675]
[1744920119229,0.23572959,84843.0,84840.0,0.24752313]
[1744920119438,0.24753004,84839.0,84835.0,0.37174114]
[1744920119645,0.2475242,84841.0,84836.0,0.24753402]
[1744920119848,0.2475242,84841.0,84838.0,0.2357432]
[1744920120234,0.01178647,84843.0,84838.0,0.2357432]
[1744920120235,0.01178647,84843.0,84840.0,0.23573715]
[1744920120411,0.23571018,84850.0,84836.0,0.01178744]
[1744920120412,0.24749601,84850.0,84845.0,0.01178619]
[1744920120709,0.23571051,84850.0,84844.0,0.01178633]
[1744920120960,0.24749559,84850.0,84845.0,0.01178619]
[1744920121131,0.24749559,84850.0,84846.0,0.23572118]
[1744920121330,0.01178564,84849.0,84842.0,0.24751716]
[1744920121532,0.01178661,84842.0,84837.0,0.0117873]
[1744920121737,0.01178633,84844.0,84841.0,0.23573398]
[1744920121895,0.24751343,84844.0,84841.0,0.35178675]
[1744920122090,0.24751234,84847.0,84843.0,0.01178647]
[1744920122339,0.24749444,84851.0,84847.0,0.23571841]
[1744920122494,0.01178522,84852.0,84847.0,0.23571841]
[1744920122692,0.01178342,84865.0,84847.0,0.57907547]
[1744920122892,0.01178536,84851.0,84847.0,0.57671841]
[1744920123095,0.23570365,84853.0,84847.0,0.57671841]
[1744920123301,0.2474773,84857.0,84847.0,0.57671841]
[1744920123638,0.01178467,84856.0,84847.0,0.57671841]
[1744920123781,0.2356984,84855.0,84847.0,0.57671841]
[1744920123987,0.23569813,84855.0,84847.0,0.57671841]
[1744920124209,0.0469,84873.0,84847.0,0.63835926]
[1744920124412,0.4128,84884.0,84847.0,0.63835926]
[1744920124413,0.01178342,84865.0,84847.0,0.75780717]
[1744920124613,0.01178383,84862.0,84847.0,0.75780717]
[1744920124994,0.01178383,84862.0,84847.0,0.76516328]
[1744920125186,0.01178342,84865.0,84847.0,0.76516328]
[1744920125388,0.24744362,84868.0,84847.0,0.76516328]
[1744920125704,0.24744672,84867.0,84862.0,0.2356749]
[1744920125905,0.24744918,84866.0,84863.0,0.00735611]
[1744920126104,0.23566942,84865.0,84863.0,0.00735611]
[1744920126488,0.23566942,84865.0,84864.0,0.00735611]
[1744920127093,0.23566942,84865.0,84864.0,0.02950788]
[1744920127295,0.23566942,84865.0,84864.0,0.00735611]
[1744920127514,0.23566942,84865.0,84864.0,0.00765611]
[1744920127983,0.23566942,84865.0,84864.0,0.0003]
[1744920128356,0.23566614,84866.0,84864.0,0.0003]
[1744920128717,0.24744633,84867.0,84864.0,0.02234142]
[1744920129383,0.00044903,84868.0,84865.0,0.01178342]
[1744920129630,0.00044903,84868.0,84867.0,0.34]
[1744920129822,0.00044903,84868.0,84867.0,0.57566286]
[1744920134608,0.00044903,84868.0,84867.0,0.41765162]
[1744920134905,0.0117787,84899.0,84867.0,0.41765162]
[1744920134906,0.01177967,84892.0,84884.0,0.23561566]
[1744920135202,0.01177967,84892.0,84884.0,0.23797155]
[1744920135203,0.00055596,84885.0,84884.0,0.23797155]
[1744920135399,0.00055596,84885.0,84884.0,0.23561566]
[1744920135605,0.23561566,84884.0,84883.0,0.1464]
[1744920135804,0.00055596,84885.0,84883.0,0.1464]
[1744920136215,0.01178078,84884.0,84878.0,0.01178161]
[1744920136416,0.00055596,84885.0,84882.0,0.01178106]
[1744920136828,0.00055596,84885.0,84884.0,0.23561566]
[1744920137000,0.23561566,84884.0,84882.0,0.34]
[1744920137198,0.0123366,84885.0,84882.0,0.58740224]
[1744920137402,0.2479519,84885.0,84882.0,0.35178106]
[1744920137720,0.2479519,84885.0,84882.0,0.34]
[1744920137721,0.23561843,84883.0,84882.0,0.34]
[1744920138144,0.23561691,84884.0,84881.0,0.34]
[1744920138348,0.23561691,84884.0,84882.0,0.23562104]
[1744920138472,0.00055596,84885.0,84884.0,0.34]
[1744920138698,0.23616884,84885.0,84884.0,0.34]
[1744920139123,0.23616884,84885.0,84884.0,0.34735448]
[1744920140016,0.23616884,84885.0,84884.0,0.00735448]
[1744920140219,0.23616884,84885.0,84877.0,0.00735448]
[1744920140220,0.23563231,84878.0,84877.0,0.00735448]
[1744920142422,0.01178147,84879.0,84876.0,0.34735448]
[1744920142616,0.23563306,84878.0,84876.0,0.34735448]
[1744920142979,0.23563306,84878.0,84877.0,0.00735448]
[1744920145276,0.24741173,84879.0,84877.0,0.00735448]
[1744920145474,0.01178119,84881.0,84878.0,0.34]
[1744920145679,0.23562954,84879.0,84878.0,0.34]
[1744920146211,0.24730069,84883.0,84878.0,0.35913618]
[1744920146339,0.01178106,84882.0,84878.0,0.01913618]
[1744920146569,0.23562418,84881.0,84879.0,0.00735457]
[1744920146768,0.24740359,84882.0,84879.0,0.01913604]
[1744920146979,0.23562399,84881.0,84880.0,0.34]
[1744920147379,0.00155596,84885.0,84884.0,0.34]
[1744920147578,0.23716884,84885.0,84884.0,0.34735457]
[1744920147778,0.23716884,84885.0,84884.0,0.00735457]
[1744920148508,0.00155596,84885.0,84884.0,0.24297023]
[1744920148708,0.00155596,84885.0,84884.0,0.23561566]
[1744920149380,0.00155596,84885.0,84884.0,0.23591566]
[1744920149560,0.00155596,84885.0,84884.0,0.24326971]
[1744920150309,0.00155596,84885.0,84884.0,0.23591566]
[1744920150654,0.00155596,84885.0,84884.0,0.0003]
[1744920150856,0.23716884,84885.0,84884.0,0.0003]
[1744920151490,0.23716884,84885.0,84884.0,0.00765424]
[1744920151906,0.23716884,84885.0,84884.0,0.0003]
[1744920152862,0.00155596,84885.0,84884.0,0.3403]
[1744920153053,0.23716884,84885.0,84884.0,0.3403]
[1744920154507,0.23716884,84885.0,84884.0,0.0003]
[1744920169318,0.28326884,84885.0,84884.0,0.0003]
[1744920170210,0.40371675,84885.0,84884.0,0.0003]
[1744920171310,0.40271675,84885.0,84884.0,0.0003]
[1744920171737,0.23566008,84868.0,84866.0,0.14624]
[1744920171939,0.23566286,84867.0,84866.0,0.14624]
[1744920172260,0.23566286,84867.0,84866.0,0.19624]
[1744920172861,0.23566286,84867.0,84866.0,0.05]
[1744920175984,0.73566286,84867.0,84866.0,0.05]
[1744920180028,0.23568785,84858.0,84857.0,0.23561744]
[1744920180147,0.23568785,84858.0,84856.0,0.14628]
[1744920180352,0.24747018,84859.0,84856.0,0.38197239]
[1744920180776,0.01178411,84860.0,84857.0,0.23568975]
[1744920180979,0.24746727,84860.0,84857.0,0.23569063]
[1744920181195,0.01178411,84860.0,84858.0,0.23568782]
[1744920181415,0.24745997,84863.0,84860.0,0.23567978]
[1744920181648,0.24745997,84863.0,84859.0,0.24746403]
[1744920181925,0.24745997,84863.0,84860.0,0.23568148]
[1744920182156,0.24745997,84863.0,84861.0,0.5756795]
[1744920182473,0.23567674,84862.0,84861.0,0.34]
[1744920183951,0.24745997,84863.0,84861.0,0.34]
[1744920184376,0.23567674,84862.0,84861.0,0.34]
[1744920184734,0.24746057,84862.0,84860.0,0.34]
[1744920185324,0.24745997,84863.0,84861.0,0.23567952]
[1744920186375,0.23567052,84865.0,84863.0,0.34]
[1744920186600,0.23567401,84863.0,84862.0,0.34]
[1744920187571,0.24745474,84864.0,84862.0,0.34]
[1744920188174,0.23567818,84862.0,84861.0,0.34]
[1744920188377,0.01178369,84863.0,84861.0,0.34]
[1744920188619,0.23567674,84862.0,84861.0,0.34]
[1744920189198,0.23567674,84862.0,84860.0,0.57568178]
[1744920189880,0.23567952,84861.0,84860.0,0.34]
[1744920190114,0.23568785,84858.0,84857.0,0.34044903]
[1744920192713,0.23568785,84858.0,84857.0,0.00044903]
[1744920193870,0.24748661,84854.0,84850.0,0.24833757]
[1744920194953,0.24746607,84861.0,84852.0,0.01178522]
[1744920195153,0.73566399,84867.0,84864.0,0.01178355]
[1744920195334,0.74744713,84867.0,84863.0,0.01178369]
[1744920195560,0.5,84867.0,84864.0,0.24745454]
[1744920195968,0.74744823,84867.0,84863.0,0.01178369]
[1744920196151,0.23566856,84865.0,84863.0,0.01178369]
[1744920196554,0.51178314,84867.0,84863.0,0.01178369]
[1744920196555,0.5,84867.0,84866.0,0.23566563]
[1744920198059,0.5,84867.0,84866.0,0.57566563]
[1744920198380,0.5,84867.0,84866.0,0.34]
[1744920198712,0.5,84867.0,84866.0,0.57566563]
[1744920200625,0.5,84867.0,84865.0,0.57566761]
[1744920202428,0.5,84867.0,84865.0,0.57566832]
[1744920203223,0.23567201,84864.0,84863.0,0.34]
[1744920204282,0.01178453,84857.0,84854.0,0.35178494]
[1744920204459,0.23568868,84858.0,84854.0,0.35178494]
[1744920204787,0.23568785,84858.0,84857.0,0.34]
[1744920205542,0.24746954,84859.0,84857.0,0.34]
[1744920205747,0.24745618,84864.0,84857.0,0.01178453]
[1744920205923,0.0469,84884.0,84866.0,0.57566563]
[1744920206127,0.23565076,84872.0,84866.0,0.57566563]
[1744920206310,0.01178286,84869.0,84866.0,0.34]
[1744920206937,0.23565587,84870.0,84866.0,0.57566563]
[1744920207141,0.01178286,84869.0,84866.0,0.57566563]
[1744920208074,0.23565587,84870.0,84866.0,0.57566563]
[1744920208280,0.01178286,84869.0,84866.0,0.57566563]
[1744920208455,0.24744016,84869.0,84866.0,0.57566563]
[1744920209574,0.24744071,84869.0,84866.0,0.57566563]
[1744920212668,0.23565587,84870.0,84866.0,0.57566563]
[1744920213072,0.24743859,84870.0,84866.0,0.57566563]
[1744920213275,0.24743859,84870.0,84866.0,0.24302112]
[1744920213479,0.002,84889.0,84866.0,0.24302112]
[1744920213686,0.01178092,84883.0,84866.0,0.25756197]
[1744920213893,0.01178119,84881.0,84866.0,0.25756197]
[1744920214293,0.01178147,84879.0,84866.0,0.25756197]
[1744920214507,0.24740202,84883.0,84866.0,0.25756197]
[1744920215905,0.50044903,84867.0,84866.0,0.26631697]
[1744920216204,0.50044903,84867.0,84866.0,0.60631697]
[1744920218445,0.50044903,84867.0,84866.0,0.59896148]
[1744920223281,0.50044903,84867.0,84866.0,0.58442063]
[1744920223681,0.50044903,84867.0,84866.0,0.008755]
[1744920223884,0.50044903,84867.0,84866.0,0.24442063]
[1744920224082,0.50044903,84867.0,84866.0,0.23566563]
[1744920225107,0.50044903,84867.0,84866.0,0.24464152]
[1744920225619,0.50036655,84867.0,84866.0,0.24464152]
[1744920226460,0.50036655,84867.0,84866.0,0.58464152]
[1744920227575,0.50036655,84867.0,84866.0,0.73064152]
[1744920228426,0.50036655,84867.0,84866.0,0.74518237]
[1744920249044,0.45336655,84867.0,84866.0,0.86563028]
[1744920249250,0.45336655,84867.0,84866.0,0.91403028]
[1744920249460,0.39871655,84867.0,84866.0,0.91403028]
[1744920249733,0.39871655,84867.0,84866.0,0.92138375]
[1744920250450,0.33988659,84867.0,84866.0,0.92138375]
[1744920250692,0.32706659,84867.0,84866.0,0.92138375]
[1744920250930,0.26823663,84867.0,84866.0,0.92138375]
[1744920251691,0.22897664,84867.0,84866.0,0.91403028]
[1744920252951,0.19377664,84867.0,84866.0,0.91403028]
[1744920253155,0.13494668,84867.0,84866.0,0.91403028]
[1744920253358,0.13494668,84867.0,84866.0,0.92138407]
[1744920253561,0.11330668,84867.0,84866.0,0.92138407]
[1744920253796,0.10780011,84867.0,84866.0,0.92138407]
[1744920254089,0.04897015,84867.0,84866.0,0.92138407]
[1744920254481,0.002,84889.0,84884.0,0.57561566]
[1744920254660,0.002,84889.0,84884.0,0.72149566]
[1744920254881,0.00047419,84885.0,84884.0,0.72884945]
[1744920260868,0.00047419,84885.0,84884.0,0.564367]
[1744920266324,0.00047419,84885.0,84884.0,0.55701321]
[1744920270511,0.00151762,84889.0,84888.0,0.57560456]
[1744920271729,0.00151762,84889.0,84888.0,0.60003079]
[1744920274362,0.00151762,84889.0,84888.0,0.60738397]
[1744920274982,0.00151762,84889.0,84888.0,0.6162997]
[1744920277169,0.00151762,84889.0,84888.0,0.60894652]
[1744920278500,0.00151762,84889.0,84888.0,0.76213993]
[1744920280228,0.00151762,84889.0,84888.0,0.7532242]
[1744920280729,0.00151762,84889.0,84888.0,0.74587079]
[1744920281727,0.00151762,84889.0,84888.0,0.75322412]
[1744920282526,0.0004212,84893.0,84892.0,0.6901343]
[1744920282527,1e-08,84893.0,84892.0,0.6901343]
[1744920282736,19.99335698,84906.0,84905.0,0.59009823]
[1744920282996,19.94985725,84906.0,84905.0,0.85538614]
[1744920283314,19.94985725,84906.0,84905.0,0.90943947]
[1744920284166,19.94985725,84906.0,84905.0,0.90208614]
[1744920285383,19.94985725,84906.0,84905.0,0.85538614]
[1744920293423,19.94985725,84906.0,84905.0,0.70954614]
[1744920297554,19.94810239,84906.0,84905.0,0.70954614]
[1744920298047,19.94810239,84906.0,84905.0,0.45944791]
[1744920298247,19.94810239,84906.0,84905.0,0.69500529]
[1744920300501,19.93207239,84906.0,84905.0,0.79500529]
[1744920303985,19.93207239,84906.0,84905.0,0.57555738]
[1744920305284,19.8726469,84906.0,84905.0,0.75604614]
[1744920305613,19.81384178,84906.0,84905.0,0.75604614]
[1744920305814,18.82684178,84906.0,84905.0,0.75604614]
[1744920306219,18.76803666,84906.0,84905.0,0.75604614]
[1744920306442,18.70923154,84906.0,84905.0,0.41604614]
[1744920307029,18.68080154,84906.0,84905.0,0.41604614]
[1744920307237,18.62165154,84906.0,84905.0,0.41604614]
[1744920307496,18.62165154,84906.0,84905.0,0.56172614]
[1744920307727,18.60273154,84906.0,84905.0,0.56172614]
[1744920307900,18.59378154,84906.0,84905.0,0.51522614]
[1744920308545,18.59378154,84906.0,84905.0,0.85522614]
[1744920309159,18.59378154,84906.0,84905.0,0.72123738]
[1744920309553,18.59378154,84906.0,84905.0,0.48568]
[1744920310881,18.59478154,84906.0,84905.0,0.48568]
[1744920311698,18.64298154,84906.0,84905.0,0.48568]
[1744920314254,18.64298154,84906.0,84905.0,0.14568]
[1744920317204,18.64298154,84906.0,84905.0,0.48568]
[1744920319345,18.87853615,84906.0,84905.0,0.48568]
[1744920321026,18.87853615,84906.0,84905.0,0.34]
[1744920321896,0.2355879,84894.0,84891.0,0.24737481]
[1744920322100,0.2355879,84894.0,84893.0,0.4856]
[1744920322300,0.3296879,84894.0,84893.0,0.4856]
[1744920324761,0.2806879,84894.0,84893.0,0.4856]
[1744920324962,0.0462,84899.0,84897.0,0.23557885]
[1744920325200,0.24735377,84899.0,84896.0,0.34]
[1744920325428,0.23557694,84898.0,84896.0,0.34]
[1744920326151,0.24735578,84898.0,84895.0,0.34]
[1744920326571,0.23558078,84897.0,84895.0,0.34]
[1744920326987,0.24735578,84898.0,84895.0,0.34]
[1744920327202,0.23557971,84897.0,84895.0,0.34]
[1744920328310,0.23558235,84896.0,84895.0,0.34]
[1744920330571,0.23558235,84896.0,84894.0,0.35177939]
[1744920330980,0.24735891,84897.0,84894.0,0.5873664]
[1744920331285,0.23558405,84896.0,84894.0,0.35177939]
[1744920331862,0.23558513,84895.0,84894.0,0.34]
[1744920333694,0.23560109,84890.0,84888.0,0.37620645]
[1744920333939,0.23560109,84890.0,84889.0,0.14564]
[1744920335136,0.23560178,84889.0,84888.0,0.36442623]
[1744920335368,0.23560178,84889.0,84888.0,0.51006623]
[1744920336691,0.24737709,84891.0,84888.0,0.26003079]
[1744920336924,0.23559086,84893.0,84891.0,0.34]
[1744920337349,0.23559345,84892.0,84891.0,0.34]
[1744920338289,0.23559086,84893.0,84890.0,0.57559837]
[1744920338656,0.23559623,84891.0,84890.0,0.34]
[1744920339804,0.2355953,84892.0,84890.0,0.34]
[1744920341004,0.2355953,84892.0,84889.0,0.23560167]
[1744920342025,0.24737604,84891.0,84888.0,0.18184645]
[1744920342389,0.23559981,84890.0,84888.0,0.02442623]
[1744920342591,0.23560178,84889.0,84888.0,0.14564]
[1744920342975,0.23560178,84889.0,84888.0,0.16845596]
[1744920343674,0.23560178,84889.0,84888.0,0.02281596]
[1744920343905,0.23560456,84888.0,84887.0,0.14564]
[1744920344577,0.23560456,84888.0,84887.0,0.16748136]
[1744920346699,0.23560733,84887.0,84886.0,1.23061183]
[1744920346982,0.28220733,84887.0,84886.0,1.57061183]
[1744920347210,0.28220733,84887.0,84886.0,1.44542501]
[1744920347443,0.28220733,84887.0,84886.0,0.36037318]
[1744920349773,0.23560733,84887.0,84886.0,0.36037318]
[1744920351350,0.23660733,84887.0,84886.0,0.36037318]
[1744920356528,0.23562954,84879.0,84878.0,0.14556]
[1744920357047,0.23562954,84879.0,84878.0,0.1662687]
[1744920357848,0.23562954,84879.0,84878.0,0.0207087]
[1744920358096,0.23562954,84879.0,84871.0,0.3408428]
[1744920358342,0.23564897,84872.0,84871.0,0.34089569]
[1744920358578,0.24742636,84874.0,84871.0,0.3616307]
[1744920359045,0.01178175,84877.0,84873.0,0.01178231]
[1744920359288,0.01178133,84880.0,84874.0,0.20544217]
[1744920359504,0.24741392,84878.0,84875.0,0.34]
[1744920359989,0.23563651,84877.0,84875.0,0.34]
[1744920360474,0.23563595,84877.0,84875.0,0.34]
[1744920360706,0.24741437,84878.0,84875.0,0.34]
[1744920360937,0.01178161,84878.0,84875.0,0.35178203]
[1744920361882,0.23563787,84876.0,84875.0,0.34]
[1744920362761,0.01178064,84885.0,84882.0,0.34]
[1744920362980,0.23561843,84883.0,84882.0,0.34]
[1744920363700,0.23563182,84879.0,84878.0,0.34]
[1744920364733,0.23563787,84876.0,84875.0,0.341]
[1744920367359,0.23563217,84880.0,84877.0,0.01178175]
[1744920367584,0.23562454,84881.0,84879.0,0.35178147]
[1744920367794,0.24740227,84882.0,84879.0,0.58741082]
[1744920367997,0.23562541,84881.0,84879.0,0.34]
[1744920368209,0.23562676,84880.0,84879.0,0.34]
[1744920368600,0.2474066,84881.0,84877.0,0.35178175]
[1744920368822,0.24740251,84882.0,84879.0,0.23562759]
[1744920369204,0.23562436,84881.0,84879.0,0.34]
[1744920370366,0.23562676,84880.0,84878.0,0.34]
[1744920371198,0.23562676,84880.0,84878.0,0.57563226]
[1744920372393,0.24740809,84880.0,84878.0,0.34]
[1744920373500,0.23562399,84881.0,84880.0,0.34]
[1744920374495,0.23562399,84881.0,84879.0,0.235629]
[1744920374902,0.23562399,84881.0,84880.0,0.34]
[1744920375205,0.24740242,84882.0,84880.0,0.34]
[1744920377312,0.23562399,84881.0,84880.0,0.34]
[1744920377633,0.24740242,84882.0,84880.0,0.34]
[1744920378556,0.23562399,84881.0,84880.0,0.34]
[1744920379924,0.23563784,84877.0,84875.0,0.341]
[1744920380138,0.23563784,84877.0,84876.0,0.48548]
[1744920380777,0.23563784,84877.0,84876.0,0.14548]
[1744920381739,0.0466,84883.0,84882.0,0.23562121]
[1744920381937,0.0004215,84920.0,84879.0,0.24741088]
[1744920381938,0.01177995,84890.0,84879.0,0.24741088]
[1744920382257,0.23562442,84881.0,84880.0,0.47128972]
[1744920382455,0.23562954,84879.0,84878.0,0.14548]
[1744920382902,0.24740561,84881.0,84878.0,0.14548]
[1744920383060,0.2356283,84880.0,84878.0,0.14548]
[1744920383810,0.24740518,84881.0,84878.0,0.15726161]
[1744920384013,0.23562716,84880.0,84878.0,0.14548]
[1744920384212,0.23562954,84879.0,84878.0,0.14548]
[1744920391442,0.24741925,84877.0,84873.0,0.13938895]
[1744920391645,0.24741925,84877.0,84875.0,0.34]
[1744920391823,0.24741925,84877.0,84874.0,0.14548]
[1744920392191,0.24741925,84877.0,84874.0,0.38112176]
[1744920392390,0.23563852,84876.0,84874.0,0.38112176]
[1744920392642,0.23563852,84876.0,84874.0,0.39290393]
[1744920394152,0.23563852,84876.0,84874.0,0.14548]
[1744920394610,0.23564064,84875.0,84874.0,0.14548]
[1744920395206,0.23564064,84875.0,84874.0,0.48548]
[1744920396405,0.23563852,84876.0,84875.0,0.34]
[1744920397805,0.23564064,84875.0,84874.0,0.14548]
[1744920398505,0.23563852,84876.0,84874.0,0.14548]
[1744920398710,0.24741734,84877.0,84874.0,0.38112316]
[1744920398931,0.23563931,84876.0,84874.0,0.14548]
[1744920399925,0.23564064,84875.0,84874.0,0.14548]
[1744920401779,0.23563931,84876.0,84874.0,0.14548]
[1744920402469,0.01178161,84878.0,84876.0,0.34]
[1744920403174,0.23563509,84877.0,84876.0,0.34]
[1744920405698,0.23563509,84877.0,84875.0,0.34]
[1744920405903,0.001,84879.0,84878.0,0.35454085]
[1744920406106,18.59378154,84906.0,84900.0,0.01177856]
[1744920406107,0.0498,84905.0,84900.0,0.01177856]
[1744920406282,18.59378154,84906.0,84902.0,0.34]
[1744920406482,0.23556118,84904.0,84902.0,0.34]
[1744920406680,0.01177786,84905.0,84902.0,0.34]
[1744920406891,18.82933746,84906.0,84903.0,0.23556211]
[1744920407027,18.82933746,84906.0,84903.0,0.24734025]
[1744920407882,18.59378154,84906.0,84904.0,0.23556001]
[1744920408231,18.59378154,84906.0,84905.0,0.23555738]
[1744920409525,18.59378154,84906.0,84903.0,0.01177814]
[1744920409663,18.59378154,84906.0,84905.0,0.23555738]
[1744920411454,18.59378154,84906.0,84905.0,0.57555738]
[1744920411874,18.59378154,84906.0,84905.0,0.62285738]
[1744920412072,18.59378154,84906.0,84905.0,0.75684614]
[1744920412419,18.59384498,84906.0,84905.0,0.75684614]
[1744920412622,18.59384498,84906.0,84905.0,0.75784614]
[1744920412843,18.55332679,84906.0,84905.0,0.80364614]
[1744920413187,18.49449638,84906.0,84905.0,0.80364614]
[1744920413392,18.48233639,84906.0,84905.0,0.80364614]
[1744920413594,18.42350598,84906.0,84905.0,0.80364614]
[1744920413795,18.41647598,84906.0,84905.0,0.80364614]
[1744920414043,18.36847598,84906.0,84905.0,0.80364614]
[1744920414210,18.36847598,84906.0,84905.0,0.94904614]
[1744920414833,18.30967394,84906.0,84905.0,0.94904614]
[1744920415215,18.29189394,84906.0,84905.0,0.94904614]
[1744920415870,18.27419394,84906.0,84905.0,0.80364614]
[1744920416002,18.27419394,84906.0,84905.0,0.94900614]
[1744920417996,13.27196394,84906.0,84905.0,0.94900614]
[1744920418578,11.30905897,84906.0,84905.0,0.94900614]
[1744920418778,11.13082338,84906.0,84905.0,0.95000614]
[1744920418981,11.13082338,84906.0,84905.0,1.36200614]
[1744920421221,11.13082338,84906.0,84905.0,1.39930183]
[1744920421612,11.13082338,84906.0,84905.0,1.36200614]
[1744920422637,9.09530608,84906.0,84905.0,1.36200614]
[1744920422822,6.4827083,84906.0,84905.0,1.31890614]
[1744920422993,5.63441735,84906.0,84905.0,1.51549788]
[1744920423162,5.59557671,84906.0,84905.0,1.51549788]
[1744920423373,5.56773894,84906.0,84905.0,1.51549788]
[1744920423601,5.15573894,84906.0,84905.0,1.51549788]
[1744920424328,5.07898243,84906.0,84905.0,1.51549788]
[1744920424718,5.00381161,84906.0,84905.0,1.51549788]
[1744920424945,4.85346997,84906.0,84905.0,1.51549788]
[1744920425320,4.85346997,84906.0,84905.0,1.61549788]
[1744920425547,4.85346997,84906.0,84905.0,1.54280614]
[1744920425743,4.85346997,84906.0,84905.0,1.57820219]
[1744920426209,4.85346997,84906.0,84905.0,1.61549788]
[1744920426733,4.85346997,84906.0,84905.0,1.58010183]
[1744920427857,4.81588401,84906.0,84905.0,1.27354614]
[1744920428088,4.81588401,84906.0,84905.0,2.01396529]
[1744920428317,4.81588401,84906.0,84905.0,2.06496529]
[1744920428475,4.81588401,84906.0,84905.0,2.01496529]
[1744920428679,4.81588401,84906.0,84905.0,2.40496529]